[Event "Titled Tuesday Blitz December 7 2021"]
[White "Krivonosov, Oleg"]
[Black "Sviridov, Valery"]
[WhiteFideId "11600349"]
[BlackFideId "4120680"]
[WhiteElo "2469"]
[BlackElo "2454"]
[Result "1/2-1/2"]
[Round "04"]
[TimeControl "180+1"]
[Date "2021.12.07"]
[WhiteClock "0:00:44"]
[BlackClock "0:00:45"]

1. Nf3 {[%clk 0:03:00]}  d5 {[%clk 0:02:59]} 2. d4 {[%clk 0:03:00]}  c6 {[%clk 0:02:58]} 3. c4 {[%clk 0:03:00]}  Nf6 {[%clk 0:02:58]} 4. cxd5 {[%clk 0:03:00]}  cxd5 {[%clk 0:02:59]} 5. Nc3 {[%clk 0:03:00]}  Nc6 {[%clk 0:02:57]} 6. Bf4 {[%clk 0:03:00]}  a6 {[%clk 0:02:53]} 7. Rc1 {[%clk 0:02:59]}  Bf5 {[%clk 0:02:41]} 8. e3 {[%clk 0:02:58]}  h6 {[%clk 0:02:38]} 9. h3 {[%clk 0:02:54]}  e6 {[%clk 0:02:37]} 10. Qb3 {[%clk 0:02:51]}  Ra7 {[%clk 0:02:37]} 11. Be2 {[%clk 0:02:50]}  Bd6 {[%clk 0:02:37]} 12. Bxd6 {[%clk 0:02:50]}  Qxd6 {[%clk 0:02:38]} 13. O-O {[%clk 0:02:49]}  O-O {[%clk 0:02:37]} 14. Na4 {[%clk 0:02:49]}  Ne4 {[%clk 0:02:33]} 15. Nc5 {[%clk 0:02:47]}  Nxc5 {[%clk 0:02:33]} 16. Rxc5 {[%clk 0:02:48]}  Be4 {[%clk 0:02:30]} 17. Qb6 {[%clk 0:02:42]}  Qb8 {[%clk 0:02:26]} 18. Rfc1 {[%clk 0:02:35]}  Ra8 {[%clk 0:02:26]} 19. Nd2 {[%clk 0:02:32]}  Bg6 {[%clk 0:02:25]} 20. Nb3 {[%clk 0:02:31]}  Re8 {[%clk 0:02:21]} 21. Na5 {[%clk 0:02:27]}  Nxa5 {[%clk 0:02:17]} 22. Rxa5 {[%clk 0:02:28]}  Re7 {[%clk 0:01:56]} 23. Rac5 {[%clk 0:02:21]}  Qd8 {[%clk 0:01:41]} 24. Qxd8+ {[%clk 0:02:14]}  Rxd8 {[%clk 0:01:39]} 25. Rc8 {[%clk 0:02:15]}  Rxc8 {[%clk 0:01:37]} 26. Rxc8+ {[%clk 0:02:15]}  Kh7 {[%clk 0:01:38]} 27. b4 {[%clk 0:02:13]}  f6 {[%clk 0:01:35]} 28. f3 {[%clk 0:02:06]}  e5 {[%clk 0:01:33]} 29. Kf2 {[%clk 0:02:05]}  exd4 {[%clk 0:01:31]} 30. exd4 {[%clk 0:02:05]}  Bb1 {[%clk 0:01:31]} 31. a4 {[%clk 0:02:04]}  Kg6 {[%clk 0:01:28]} 32. a5 {[%clk 0:02:03]}  Kf7 {[%clk 0:01:21]} 33. h4 {[%clk 0:01:57]}  g5 {[%clk 0:01:20]} 34. g3 {[%clk 0:01:56]}  gxh4 {[%clk 0:01:18]} 35. gxh4 {[%clk 0:01:55]}  Kg6 {[%clk 0:01:18]} 36. Bd1 {[%clk 0:01:40]}  Kh5 {[%clk 0:01:16]} 37. Rh8 {[%clk 0:01:29]}  Bh7 {[%clk 0:01:08]} 38. Rf8 {[%clk 0:01:00]}  Kxh4 {[%clk 0:01:04]} 39. Rxf6 {[%clk 0:01:00]}  h5 {[%clk 0:01:05]} 40. Rd6 {[%clk 0:00:57]}  Bg8 {[%clk 0:01:05]} 41. Bb3 {[%clk 0:00:50]}  Rc7 {[%clk 0:01:02]} 42. Bxd5 {[%clk 0:00:49]}  Bxd5 {[%clk 0:01:03]} 43. Rxd5 {[%clk 0:00:49]}  Rc4 {[%clk 0:01:03]} 44. b5 {[%clk 0:00:48]}  axb5 {[%clk 0:01:01]} 45. Rxb5 {[%clk 0:00:48]}  Rxd4 {[%clk 0:00:59]} 46. Rxb7 {[%clk 0:00:48]}  Ra4 {[%clk 0:01:00]} 47. Ra7 {[%clk 0:00:49]}  Ra2+ {[%clk 0:00:59]} 48. Ke3 {[%clk 0:00:49]}  Kg3 {[%clk 0:00:49]} 49. a6 {[%clk 0:00:47]}  Ra3+ {[%clk 0:00:47]} 50. Ke4 {[%clk 0:00:48]}  Ra4+ {[%clk 0:00:44]} 51. Kd5 {[%clk 0:00:46]}  Kxf3 {[%clk 0:00:44]} 52. Ra8 {[%clk 0:00:46]}  h4 {[%clk 0:00:42]} 53. a7 {[%clk 0:00:46]}  h3 {[%clk 0:00:43]} 54. Rf8+ {[%clk 0:00:45]}  Kg2 {[%clk 0:00:43]} 55. a8=Q {[%clk 0:00:44]}  Rxa8 {[%clk 0:00:44]} 56. Rxa8 {[%clk 0:00:45]}  h2 {[%clk 0:00:44]} 57. Rg8+ {[%clk 0:00:45]}  Kf2 {[%clk 0:00:44]} 58. Rh8 {[%clk 0:00:44]}  Kg2 {[%clk 0:00:45]} 59. Rxh2+ {[%clk 0:00:44]}  Kxh2 {[%clk 0:00:45]} 1/2-1/2


[Site "https://www.chess.com"]

[Event "Titled Tuesday Blitz December 7 2021"]
[White "Kucuksari, Kaan"]
[Black "Brunner, Nicolas"]
[WhiteFideId "6380166"]
[BlackFideId "620246"]
[WhiteElo "2305"]
[BlackElo "2372"]
[Result "0-1"]
[Round "04"]
[TimeControl "180+1"]
[Date "2021.12.07"]
[WhiteClock "0:00:17"]
[BlackClock "0:00:22"]

1. d4 {[%clk 0:02:23]}  d5 {[%clk 0:02:59]} 2. c4 {[%clk 0:02:24]}  e6 {[%clk 0:02:56]} 3. Nf3 {[%clk 0:02:25]}  Nf6 {[%clk 0:02:55]} 4. g3 {[%clk 0:02:26]}  dxc4 {[%clk 0:02:53]} 5. Bg2 {[%clk 0:02:27]}  c5 {[%clk 0:02:46]} 6. O-O {[%clk 0:02:22]}  Nc6 {[%clk 0:02:42]} 7. Qa4 {[%clk 0:02:23]}  Bd7 {[%clk 0:02:40]} 8. Qxc4 {[%clk 0:02:23]}  b5 {[%clk 0:02:39]} 9. Qd3 {[%clk 0:02:23]}  Rc8 {[%clk 0:02:37]} 10. dxc5 {[%clk 0:02:20]}  Bxc5 {[%clk 0:02:35]} 11. Qxb5 {[%clk 0:02:20]}  Nb4 {[%clk 0:02:21]} 12. Qb7 {[%clk 0:02:17]}  Nc2 {[%clk 0:02:19]} 13. Ne5 {[%clk 0:02:09]}  Nxa1 {[%clk 0:02:10]} 14. Rd1 {[%clk 0:02:04]}  Rc7 {[%clk 0:02:07]} 15. Qf3 {[%clk 0:01:52]}  O-O {[%clk 0:01:57]} 16. Bg5 {[%clk 0:01:38]}  Bc6 {[%clk 0:01:25]} 17. Rxd8 {[%clk 0:01:25]}  Bxf3 {[%clk 0:01:24]} 18. Rxf8+ {[%clk 0:01:25]}  Bxf8 {[%clk 0:01:20]} 19. Bxf3 {[%clk 0:01:24]}  Nc2 {[%clk 0:01:19]} 20. Nc3 {[%clk 0:01:18]}  Nd4 {[%clk 0:01:17]} 21. Bg2 {[%clk 0:01:18]}  Bb4 {[%clk 0:01:15]} 22. Ne4 {[%clk 0:01:01]}  Nxe4 {[%clk 0:01:14]} 23. Bxe4 {[%clk 0:01:00]}  f6 {[%clk 0:01:08]} 24. Nd3 {[%clk 0:00:58]}  fxg5 {[%clk 0:01:01]} 25. Nxb4 {[%clk 0:00:59]}  Nxe2+ {[%clk 0:01:02]} 26. Kg2 {[%clk 0:00:58]}  Nd4 {[%clk 0:01:01]} 27. Nd3 {[%clk 0:00:53]}  g6 {[%clk 0:00:57]} 28. b4 {[%clk 0:00:50]}  Rc2 {[%clk 0:00:53]} 29. a4 {[%clk 0:00:48]}  Ra2 {[%clk 0:00:53]} 30. a5 {[%clk 0:00:46]}  Kg7 {[%clk 0:00:51]} 31. Nc5 {[%clk 0:00:37]}  Rb2 {[%clk 0:00:47]} 32. Nd3 {[%clk 0:00:35]}  Rd2 {[%clk 0:00:46]} 33. a6 {[%clk 0:00:21]}  Ra2 {[%clk 0:00:41]} 34. Nc5 {[%clk 0:00:21]}  g4 {[%clk 0:00:40]} 35. Bd3 {[%clk 0:00:18]}  Rb2 {[%clk 0:00:38]} 36. b5 {[%clk 0:00:17]}  e5 {[%clk 0:00:30]} 37. Na4 {[%clk 0:00:17]}  Ra2 {[%clk 0:00:25]} 38. b6 {[%clk 0:00:17]}  axb6 {[%clk 0:00:24]} 39. a7 {[%clk 0:00:17]}  Rxa4 {[%clk 0:00:22]} 0-1


[Site "https://www.chess.com"]

[Event "Titled Tuesday Blitz December 7 2021"]
[White "Le, Tuan Minh"]
[Black "Bologan, Victor"]
[WhiteFideId "12401153"]
[BlackFideId "13900048"]
[WhiteElo "2450"]
[BlackElo "2472"]
[Result "0-1"]
[Round "04"]
[TimeControl "180+1"]
[Date "2021.12.07"]
[WhiteClock "0:00:03"]
[BlackClock "0:00:13"]

1. d4 {[%clk 0:03:00]}  Nf6 {[%clk 0:02:59]} 2. Nf3 {[%clk 0:03:00]}  e6 {[%clk 0:02:59]} 3. Bf4 {[%clk 0:03:00]}  b6 {[%clk 0:02:57]} 4. e3 {[%clk 0:03:00]}  Bb7 {[%clk 0:02:57]} 5. Bd3 {[%clk 0:03:01]}  Be7 {[%clk 0:02:54]} 6. h3 {[%clk 0:03:00]}  O-O {[%clk 0:02:53]} 7. Nbd2 {[%clk 0:03:00]}  c5 {[%clk 0:02:51]} 8. c3 {[%clk 0:03:00]}  d5 {[%clk 0:02:48]} 9. O-O {[%clk 0:02:59]}  Ba6 {[%clk 0:02:46]} 10. Bxa6 {[%clk 0:02:54]}  Nxa6 {[%clk 0:02:45]} 11. Qa4 {[%clk 0:02:51]}  Qc8 {[%clk 0:02:45]} 12. Ne5 {[%clk 0:02:43]}  Qb7 {[%clk 0:02:40]} 13. Qc6 {[%clk 0:02:23]}  Rfb8 {[%clk 0:02:27]} 14. a4 {[%clk 0:02:06]}  Ne8 {[%clk 0:02:14]} 15. Rfd1 {[%clk 0:01:34]}  Bd6 {[%clk 0:02:09]} 16. Ndf3 {[%clk 0:01:23]}  f6 {[%clk 0:01:59]} 17. Qxb7 {[%clk 0:01:20]}  Rxb7 {[%clk 0:01:59]} 18. Nd3 {[%clk 0:01:21]}  c4 {[%clk 0:01:47]} 19. Nc1 {[%clk 0:01:05]}  Bxf4 {[%clk 0:01:45]} 20. exf4 {[%clk 0:01:01]}  Nd6 {[%clk 0:01:45]} 21. Re1 {[%clk 0:00:59]}  Kf7 {[%clk 0:01:45]} 22. Ne2 {[%clk 0:00:57]}  Nb8 {[%clk 0:01:42]} 23. g4 {[%clk 0:00:43]}  Nc6 {[%clk 0:01:36]} 24. Ng3 {[%clk 0:00:22]}  b5 {[%clk 0:01:24]} 25. axb5 {[%clk 0:00:22]}  Rxb5 {[%clk 0:01:24]} 26. Re2 {[%clk 0:00:23]}  Rab8 {[%clk 0:01:22]} 27. Rae1 {[%clk 0:00:22]}  Nd8 {[%clk 0:01:14]} 28. f5 {[%clk 0:00:20]}  exf5 {[%clk 0:01:06]} 29. Re7+ {[%clk 0:00:19]}  Kf8 {[%clk 0:01:06]} 30. Nxf5 {[%clk 0:00:10]}  Nxf5 {[%clk 0:01:05]} 31. gxf5 {[%clk 0:00:09]}  R5b7 {[%clk 0:00:58]} 32. Re8+ {[%clk 0:00:09]}  Kf7 {[%clk 0:00:58]} 33. Nh4 {[%clk 0:00:05]}  Nc6 {[%clk 0:00:55]} 34. R8e6 {[%clk 0:00:05]}  Ne7 {[%clk 0:00:47]} 35. Ra6 {[%clk 0:00:05]}  Rd7 {[%clk 0:00:39]} 36. Re2 {[%clk 0:00:05]}  Rb6 {[%clk 0:00:37]} 37. Ra1 {[%clk 0:00:04]}  Rdb7 {[%clk 0:00:37]} 38. Kg2 {[%clk 0:00:04]}  Rxb2 {[%clk 0:00:33]} 39. Rxb2 {[%clk 0:00:03]}  Rxb2 {[%clk 0:00:33]} 40. Rxa7 {[%clk 0:00:03]}  Rb3 {[%clk 0:00:32]} 41. Kf1 {[%clk 0:00:02]}  Rxc3 {[%clk 0:00:31]} 42. Ng2 {[%clk 0:00:03]}  Rf3 {[%clk 0:00:25]} 43. Ne3 {[%clk 0:00:03]}  Kf8 {[%clk 0:00:20]} 44. Kg2 {[%clk 0:00:03]}  Rxe3 {[%clk 0:00:18]} 45. fxe3 {[%clk 0:00:03]}  Nxf5 {[%clk 0:00:18]} 46. Kf3 {[%clk 0:00:03]}  Ne7 {[%clk 0:00:15]} 47. Rd7 {[%clk 0:00:02]}  Ke8 {[%clk 0:00:14]} 48. Ra7 {[%clk 0:00:03]}  Kf7 {[%clk 0:00:12]} 49. e4 {[%clk 0:00:03]}  Ke6 {[%clk 0:00:12]} 50. Ra6+ {[%clk 0:00:03]}  Kd7 {[%clk 0:00:12]} 51. Ra7+ {[%clk 0:00:02]}  Kd6 {[%clk 0:00:13]} 52. Ra6+ {[%clk 0:00:02]}  Nc6 {[%clk 0:00:12]} 53. Ke3 {[%clk 0:00:02]}  g5 {[%clk 0:00:11]} 54. Ra1 {[%clk 0:00:02]}  h5 {[%clk 0:00:11]} 55. Rf1 {[%clk 0:00:02]}  Ke7 {[%clk 0:00:10]} 56. exd5 {[%clk 0:00:02]}  Nb4 {[%clk 0:00:10]} 57. Ke4 {[%clk 0:00:03]}  c3 {[%clk 0:00:11]} 58. Rb1 {[%clk 0:00:03]}  c2 {[%clk 0:00:11]} 59. Rc1 {[%clk 0:00:03]}  Kd6 {[%clk 0:00:11]} 60. Kf5 {[%clk 0:00:03]}  Kxd5 {[%clk 0:00:11]} 61. Kxf6 {[%clk 0:00:04]}  g4 {[%clk 0:00:11]} 62. hxg4 {[%clk 0:00:04]}  hxg4 {[%clk 0:00:11]} 63. Kf5 {[%clk 0:00:03]}  g3 {[%clk 0:00:12]} 64. Kg4 {[%clk 0:00:04]}  g2 {[%clk 0:00:12]} 65. Kh3 {[%clk 0:00:04]}  Nd3 {[%clk 0:00:12]} 66. Ra1 {[%clk 0:00:03]}  Nf4+ {[%clk 0:00:12]} 67. Kh2 {[%clk 0:00:03]}  Kxd4 {[%clk 0:00:12]} 68. Kg1 {[%clk 0:00:03]}  Kc3 {[%clk 0:00:12]} 69. Re1 {[%clk 0:00:01]}  Kd2 {[%clk 0:00:12]} 70. Ra1 {[%clk 0:00:01]}  c1=Q+ {[%clk 0:00:11]} 71. Rxc1 {[%clk 0:00:02]}  Kxc1 {[%clk 0:00:12]} 72. Kf2 {[%clk 0:00:02]}  Kd2 {[%clk 0:00:12]} 73. Kg1 {[%clk 0:00:03]}  Ke2 {[%clk 0:00:12]} 74. Kh2 {[%clk 0:00:03]}  Kf1 {[%clk 0:00:13]} 0-1


[Site "https://www.chess.com"]

[Event "Titled Tuesday Blitz December 7 2021"]
[White "Leitao, Rafael"]
[Black "Lomaia, Diana"]
[WhiteFideId "2101246"]
[BlackFideId "13612476"]
[WhiteElo "2609"]
[BlackElo "1744"]
[Result "1-0"]
[Round "04"]
[TimeControl "180+1"]
[Date "2021.12.07"]
[WhiteClock "0:01:10"]
[BlackClock "0:01:19"]

1. c4 {[%clk 0:03:00]}  Nf6 {[%clk 0:02:56]} 2. Nc3 {[%clk 0:03:00]}  c5 {[%clk 0:02:53]} 3. Nf3 {[%clk 0:02:58]}  Nc6 {[%clk 0:02:52]} 4. e3 {[%clk 0:02:58]}  g6 {[%clk 0:02:52]} 5. d4 {[%clk 0:02:58]}  cxd4 {[%clk 0:02:52]} 6. exd4 {[%clk 0:02:59]}  d5 {[%clk 0:02:52]} 7. cxd5 {[%clk 0:02:59]}  Nxd5 {[%clk 0:02:52]} 8. Bc4 {[%clk 0:02:59]}  Nxc3 {[%clk 0:02:52]} 9. Qb3 {[%clk 0:02:59]}  Bg7 {[%clk 0:02:52]} 10. Bxf7+ {[%clk 0:02:58]}  Kf8 {[%clk 0:02:53]} 11. bxc3 {[%clk 0:02:53]}  Na5 {[%clk 0:02:20]} 12. Qd5 {[%clk 0:02:22]}  Qc7 {[%clk 0:02:18]} 13. O-O {[%clk 0:02:17]}  Bg4 {[%clk 0:02:18]} 14. Ng5 {[%clk 0:02:11]}  Rd8 {[%clk 0:02:10]} 15. Qe4 {[%clk 0:01:54]}  Bf5 {[%clk 0:02:04]} 16. Qf3 {[%clk 0:01:42]}  Qb6 {[%clk 0:01:48]} 17. Be6 {[%clk 0:01:35]}  Qc6 {[%clk 0:01:38]} 18. d5 {[%clk 0:01:23]}  Qxc3 {[%clk 0:01:36]} 19. Be3 {[%clk 0:01:23]}  Qf6 {[%clk 0:01:29]} 20. Bxf5 {[%clk 0:01:14]}  Qxf5 {[%clk 0:01:24]} 21. Ne6+ {[%clk 0:01:14]}  Kg8 {[%clk 0:01:21]} 22. Qxf5 {[%clk 0:01:10]}  gxf5 {[%clk 0:01:21]} 23. Nxd8 {[%clk 0:01:10]}  Bxa1 {[%clk 0:01:20]} 24. Rxa1 {[%clk 0:01:11]}  Kg7 {[%clk 0:01:19]} 25. Bd4+ {[%clk 0:01:10]} 1-0


[Site "https://www.chess.com"]

[Event "Titled Tuesday Blitz December 7 2021"]
[White "Maly, Alexey"]
[Black "Guz, Ari"]
[WhiteFideId "14103184"]
[BlackFideId "2825759"]
[WhiteElo "2294"]
[BlackElo "1913"]
[Result "1/2-1/2"]
[Round "04"]
[TimeControl "180+1"]
[Date "2021.12.07"]
[WhiteClock "0:02:33"]
[BlackClock "0:02:37"]

1. d4 {[%clk 0:03:00]}  d5 {[%clk 0:02:56]} 2. c4 {[%clk 0:03:01]}  e6 {[%clk 0:02:57]} 3. Nf3 {[%clk 0:03:00]}  a6 {[%clk 0:02:57]} 4. e3 {[%clk 0:03:00]}  dxc4 {[%clk 0:02:56]} 5. Bxc4 {[%clk 0:03:00]}  b5 {[%clk 0:02:57]} 6. Be2 {[%clk 0:03:00]}  Bb7 {[%clk 0:02:57]} 7. a4 {[%clk 0:03:00]}  b4 {[%clk 0:02:56]} 8. O-O {[%clk 0:03:00]}  Nf6 {[%clk 0:02:57]} 9. b3 {[%clk 0:03:00]}  Be7 {[%clk 0:02:56]} 10. Bb2 {[%clk 0:03:01]}  O-O {[%clk 0:02:56]} 11. Nbd2 {[%clk 0:03:01]}  a5 {[%clk 0:02:56]} 12. Nc4 {[%clk 0:03:02]}  c5 {[%clk 0:02:55]} 13. Rc1 {[%clk 0:03:00]}  Nbd7 {[%clk 0:02:53]} 14. Nfe5 {[%clk 0:02:59]}  cxd4 {[%clk 0:02:52]} 15. Qxd4 {[%clk 0:02:57]}  Nxe5 {[%clk 0:02:49]} 16. Qxe5 {[%clk 0:02:57]}  Qd5 {[%clk 0:02:49]} 17. Qxd5 {[%clk 0:02:43]}  Bxd5 {[%clk 0:02:49]} 18. Nb6 {[%clk 0:02:42]}  Rab8 {[%clk 0:02:42]} 19. Nxd5 {[%clk 0:02:41]}  Nxd5 {[%clk 0:02:43]} 20. Bf3 {[%clk 0:02:40]}  Bf6 {[%clk 0:02:42]} 21. Bxd5 {[%clk 0:02:32]}  Bxb2 {[%clk 0:02:42]} 22. Rb1 {[%clk 0:02:33]}  Bc3 {[%clk 0:02:39]} 23. Bc4 {[%clk 0:02:33]}  Rfd8 {[%clk 0:02:37]} 1/2-1/2


[Site "https://www.chess.com"]

[Event "Titled Tuesday Blitz December 7 2021"]
[White "Materia, Marco"]
[Black "Gasanov, Eldar"]
[WhiteFideId "45150451"]
[BlackFideId "14104466"]
[WhiteElo "2592"]
[BlackElo "2454"]
[Result "0-1"]
[Round "04"]
[TimeControl "180+1"]
[Date "2021.12.07"]
[WhiteClock "0:01:16"]
[BlackClock "0:01:30"]

1. d4 {[%clk 0:02:36]}  Nf6 {[%clk 0:02:56]} 2. c4 {[%clk 0:02:36]}  e6 {[%clk 0:02:56]} 3. Nf3 {[%clk 0:02:36]}  Bb4+ {[%clk 0:02:55]} 4. Nbd2 {[%clk 0:02:34]}  O-O {[%clk 0:02:54]} 5. a3 {[%clk 0:02:34]}  Be7 {[%clk 0:02:54]} 6. e4 {[%clk 0:02:35]}  d6 {[%clk 0:02:55]} 7. Qc2 {[%clk 0:02:33]}  Nfd7 {[%clk 0:02:53]} 8. Nb1 {[%clk 0:02:28]}  e5 {[%clk 0:02:49]} 9. d5 {[%clk 0:02:28]}  a5 {[%clk 0:02:48]} 10. Nc3 {[%clk 0:02:28]}  Nc5 {[%clk 0:02:48]} 11. Be3 {[%clk 0:02:28]}  Nba6 {[%clk 0:02:37]} 12. Nd2 {[%clk 0:02:07]}  f5 {[%clk 0:02:36]} 13. f3 {[%clk 0:02:05]}  Bh4+ {[%clk 0:02:15]} 14. g3 {[%clk 0:01:57]}  Bg5 {[%clk 0:02:15]} 15. f4 {[%clk 0:01:55]}  exf4 {[%clk 0:02:12]} 16. gxf4 {[%clk 0:01:55]}  Bh4+ {[%clk 0:02:12]} 17. Kd1 {[%clk 0:01:54]}  fxe4 {[%clk 0:02:06]} 18. Ncxe4 {[%clk 0:01:55]}  Bf5 {[%clk 0:02:03]} 19. Bg2 {[%clk 0:01:53]}  Qe7 {[%clk 0:01:58]} 20. Bxc5 {[%clk 0:01:19]}  Nxc5 {[%clk 0:01:56]} 21. Ke2 {[%clk 0:01:18]}  Bxe4 {[%clk 0:01:39]} 22. Nxe4 {[%clk 0:01:15]}  Rxf4 {[%clk 0:01:37]} 23. Ke3 {[%clk 0:01:16]}  Bg5 {[%clk 0:01:30]} 0-1


[Site "https://www.chess.com"]

[Event "Titled Tuesday Blitz December 7 2021"]
[White "Mezentsev, Ivan"]
[Black "Gelman, Alexander"]
[WhiteFideId "13706195"]
[BlackFideId "4118316"]
[WhiteElo "2295"]
[BlackElo "2375"]
[Result "1/2-1/2"]
[Round "04"]
[TimeControl "180+1"]
[Date "2021.12.07"]
[WhiteClock "0:00:10"]
[BlackClock "0:00:09"]

1. d4 {[%clk 0:03:00]}  Nf6 {[%clk 0:02:59]} 2. Nf3 {[%clk 0:03:01]}  c5 {[%clk 0:02:59]} 3. d5 {[%clk 0:03:00]}  e6 {[%clk 0:03:00]} 4. c4 {[%clk 0:02:58]}  b5 {[%clk 0:03:00]} 5. a4 {[%clk 0:02:50]}  bxc4 {[%clk 0:02:46]} 6. Nc3 {[%clk 0:02:48]}  exd5 {[%clk 0:02:40]} 7. Nxd5 {[%clk 0:02:48]}  Bb7 {[%clk 0:02:39]} 8. e4 {[%clk 0:02:42]}  Nxd5 {[%clk 0:01:39]} 9. exd5 {[%clk 0:02:40]}  Be7 {[%clk 0:01:39]} 10. Bxc4 {[%clk 0:02:32]}  O-O {[%clk 0:01:39]} 11. O-O {[%clk 0:02:29]}  d6 {[%clk 0:01:39]} 12. a5 {[%clk 0:02:28]}  Nd7 {[%clk 0:01:31]} 13. Bf4 {[%clk 0:02:27]}  Rb8 {[%clk 0:01:26]} 14. Re1 {[%clk 0:02:22]}  Re8 {[%clk 0:01:19]} 15. Qd3 {[%clk 0:02:09]}  h6 {[%clk 0:00:57]} 16. Bb5 {[%clk 0:01:49]}  Bf8 {[%clk 0:00:47]} 17. h3 {[%clk 0:01:31]}  Rxe1+ {[%clk 0:00:46]} 18. Rxe1 {[%clk 0:01:30]}  Nf6 {[%clk 0:00:45]} 19. a6 {[%clk 0:01:00]}  Bxd5 {[%clk 0:00:43]} 20. Nd2 {[%clk 0:00:50]}  Qb6 {[%clk 0:00:39]} 21. Bc4 {[%clk 0:00:49]}  Ba8 {[%clk 0:00:24]} 22. b3 {[%clk 0:00:44]}  Rd8 {[%clk 0:00:21]} 23. Qg3 {[%clk 0:00:32]}  d5 {[%clk 0:00:20]} 24. Bc7 {[%clk 0:00:31]}  Qc6 {[%clk 0:00:12]} 25. Bxd8 {[%clk 0:00:30]}  dxc4 {[%clk 0:00:12]} 26. Nxc4 {[%clk 0:00:29]}  Ne4 {[%clk 0:00:12]} 27. Qf3 {[%clk 0:00:24]}  Qxa6 {[%clk 0:00:09]} 28. Rxe4 {[%clk 0:00:20]}  Qg6 {[%clk 0:00:07]} 29. Nd2 {[%clk 0:00:12]}  Qd6 {[%clk 0:00:07]} 30. Qe3 {[%clk 0:00:10]}  Bxe4 {[%clk 0:00:07]} 31. Nxe4 {[%clk 0:00:10]}  Qxd8 {[%clk 0:00:07]} 32. g4 {[%clk 0:00:09]}  Qd4 {[%clk 0:00:07]} 33. Qxd4 {[%clk 0:00:08]}  cxd4 {[%clk 0:00:08]} 34. Kf1 {[%clk 0:00:08]}  g6 {[%clk 0:00:07]} 35. Ke2 {[%clk 0:00:09]}  f5 {[%clk 0:00:08]} 36. gxf5 {[%clk 0:00:08]}  gxf5 {[%clk 0:00:08]} 37. Nd2 {[%clk 0:00:08]}  Kf7 {[%clk 0:00:08]} 38. Kd3 {[%clk 0:00:08]}  Bc5 {[%clk 0:00:08]} 39. Nf3 {[%clk 0:00:09]}  Kg6 {[%clk 0:00:08]} 40. Nxd4 {[%clk 0:00:09]}  Bxd4 {[%clk 0:00:08]} 41. Kxd4 {[%clk 0:00:09]}  Kg5 {[%clk 0:00:09]} 42. Ke5 {[%clk 0:00:09]}  Kh4 {[%clk 0:00:08]} 43. Kxf5 {[%clk 0:00:09]}  Kxh3 {[%clk 0:00:09]} 44. Kg6 {[%clk 0:00:08]}  Kg4 {[%clk 0:00:07]} 45. Kxh6 {[%clk 0:00:08]}  Kf3 {[%clk 0:00:08]} 46. Kg6 {[%clk 0:00:08]}  Kxf2 {[%clk 0:00:09]} 47. Kf5 {[%clk 0:00:08]}  Ke3 {[%clk 0:00:09]} 48. Ke5 {[%clk 0:00:09]}  Kd3 {[%clk 0:00:10]} 49. Kd5 {[%clk 0:00:09]}  Kc3 {[%clk 0:00:11]} 50. Kc5 {[%clk 0:00:09]}  Kxb3 {[%clk 0:00:11]} 51. Kb5 {[%clk 0:00:10]}  a6+ {[%clk 0:00:09]} 52. Kxa6 {[%clk 0:00:10]} 1/2-1/2


[Site "https://www.chess.com"]

[Event "Titled Tuesday Blitz December 7 2021"]
[White "Mickiewicz, Piotr"]
[Black "Pakleza, Zbigniew"]
[WhiteFideId "1114891"]
[BlackFideId "1119290"]
[WhiteElo "2266"]
[BlackElo "2526"]
[Result "0-1"]
[Round "04"]
[TimeControl "180+1"]
[Date "2021.12.07"]
[WhiteClock "0:00:03"]
[BlackClock "0:00:27"]

1. e4 {[%clk 0:03:00]}  d6 {[%clk 0:02:59]} 2. d4 {[%clk 0:03:00]}  Nf6 {[%clk 0:02:59]} 3. Nc3 {[%clk 0:03:00]}  c6 {[%clk 0:02:57]} 4. f4 {[%clk 0:02:55]}  Qb6 {[%clk 0:02:54]} 5. Nf3 {[%clk 0:02:45]}  Bg4 {[%clk 0:02:54]} 6. e5 {[%clk 0:02:35]}  Nd5 {[%clk 0:02:54]} 7. Be2 {[%clk 0:02:07]}  e6 {[%clk 0:02:50]} 8. O-O {[%clk 0:02:05]}  Nxc3 {[%clk 0:02:37]} 9. bxc3 {[%clk 0:02:04]}  Nd7 {[%clk 0:02:35]} 10. Kh1 {[%clk 0:01:47]}  d5 {[%clk 0:02:27]} 11. a4 {[%clk 0:01:41]}  Qa5 {[%clk 0:02:14]} 12. Bd2 {[%clk 0:01:31]}  Qc7 {[%clk 0:02:11]} 13. a5 {[%clk 0:01:29]}  Be7 {[%clk 0:02:10]} 14. Qe1 {[%clk 0:01:20]}  O-O {[%clk 0:02:04]} 15. Qg3 {[%clk 0:01:19]}  Bf5 {[%clk 0:02:03]} 16. Bd3 {[%clk 0:01:18]}  Rfe8 {[%clk 0:01:50]} 17. Bxf5 {[%clk 0:01:14]}  exf5 {[%clk 0:01:51]} 18. Qh3 {[%clk 0:01:13]}  g6 {[%clk 0:01:41]} 19. g4 {[%clk 0:01:13]}  fxg4 {[%clk 0:01:38]} 20. Qxg4 {[%clk 0:01:14]}  f5 {[%clk 0:01:17]} 21. exf6 {[%clk 0:01:07]}  Nxf6 {[%clk 0:01:17]} 22. Qe6+ {[%clk 0:00:56]}  Kh8 {[%clk 0:01:08]} 23. Ne5 {[%clk 0:00:53]}  Ne4 {[%clk 0:00:48]} 24. f5 {[%clk 0:00:18]}  Bf6 {[%clk 0:00:32]} 25. Qf7 {[%clk 0:00:06]}  Qxf7 {[%clk 0:00:30]} 26. Nxf7+ {[%clk 0:00:06]}  Kg7 {[%clk 0:00:31]} 27. fxg6 {[%clk 0:00:03]}  Nxd2 {[%clk 0:00:27]} 0-1


[Site "https://www.chess.com"]

[Event "Titled Tuesday Blitz December 7 2021"]
[White "Moskalenko, Alexander"]
[Black "Kozionov, Kirill"]
[WhiteFideId "4155351"]
[BlackFideId "24101729"]
[WhiteElo "2515"]
[BlackElo "2426"]
[Result "1-0"]
[Round "04"]
[TimeControl "180+1"]
[Date "2021.12.07"]
[WhiteClock "0:02:14"]
[BlackClock "0:01:14"]

1. e4 {[%clk 0:03:00]}  c5 {[%clk 0:02:59]} 2. f4 {[%clk 0:03:00]}  d5 {[%clk 0:02:59]} 3. exd5 {[%clk 0:03:00]}  Nf6 {[%clk 0:02:59]} 4. Bb5+ {[%clk 0:02:59]}  Nbd7 {[%clk 0:02:59]} 5. c4 {[%clk 0:02:59]}  a6 {[%clk 0:02:59]} 6. Ba4 {[%clk 0:02:59]}  b5 {[%clk 0:02:59]} 7. cxb5 {[%clk 0:03:00]}  Nxd5 {[%clk 0:02:59]} 8. Nc3 {[%clk 0:02:57]}  Nb4 {[%clk 0:02:58]} 9. d4 {[%clk 0:02:49]}  e6 {[%clk 0:02:45]} 10. Be3 {[%clk 0:02:43]}  Qa5 {[%clk 0:02:19]} 11. Nf3 {[%clk 0:02:41]}  axb5 {[%clk 0:01:52]} 12. Bxb5 {[%clk 0:02:42]}  Ba6 {[%clk 0:01:51]} 13. Bxd7+ {[%clk 0:02:36]}  Kxd7 {[%clk 0:01:51]} 14. Ne5+ {[%clk 0:02:37]}  Ke8 {[%clk 0:01:49]} 15. a3 {[%clk 0:02:22]}  Nd5 {[%clk 0:01:43]} 16. dxc5 {[%clk 0:02:14]}  Bxc5 {[%clk 0:01:16]} 17. Bxc5 {[%clk 0:02:13]}  Qxc5 {[%clk 0:01:14]} 18. Qa4+ {[%clk 0:02:14]} 1-0


[Site "https://www.chess.com"]